Workbook

Sheet 3-7
H1: "Утверждаю"
H2: Руководитель МАДОУ "Детский сад общеразвивающего вида № 74" НМР РТ
J3: Л.И.Салахова
H4: от 01.04.2019
C8: Примерное 10-дневное меню
C9: для организации питания детей в дошкольных учреждениях
C10: с 12 - часовым пребыванием от 3 до 7 лет
A12: День 1 - ый
A13: Наименование блюд и | C13: Масса | D13: Кол - во | E13: Кол - во | F13: Пищевые вещества | I13: Энергетическая | J13: Витамин | K13: Сборник рецептур
A14: продуктов | C14: порции | D14: (в гр ) | E14: (в гр ) | I14: ценность
D15: брутто | E15: нетто | F15: белки | G15: жиры | H15: угл-ды | I15: Ккал | J15: С
B16: ЗАВТРАК
A17: Каша "Дружба" молочная с маслом | C17: 200/5 | F17: 5.20 | G17: 7.10 | H17: 23.20 | I17: 177.50 | J17: 0.21 | K17: ТТК №7Д
B18: Крупа рисовая | D18: 15.00 | E18: 15.00
B19: Крупа пшенная | D19: 11.00 | E19: 11.00
B20: Молоко | D20: 100.00 | E20: 100.00
B21: Вода | D21: 76.00 | E21: 76.00
B22: Сахар | D22: 5.00 | E22: 5.00
B23: Соль | D23: 1.00 | E23: 1.00
B24: Масло сливочное | D24: 5.00 | E24: 5.00
A25: Кофейный напиток с молоком | C25: 180 | F25: 2.85 | G25: 2.41 | H25: 14.36 | I25: 91.00 | J25: 0.19 | K25: №395 Дели2010
B26: Кофейный напиток | D26: 2.50 | E26: 2.50
B27: Сахар | D27: 10.00 | E27: 10.00
B28: Молоко | D28: 90.00 | E28: 90.00
B29: Вода | D29: 108.00 | E29: 108.00
A30: Бутерброд с маслом сливочным | C30: 30/5 | F30: 2.30 | G30: 4.50 | H30: 15.40 | I30: 111.00 | K30: №1 Дели2010
B31: Батон нарезной | D31: 30.00 | E31: 30.00
B32: Масло сливочное | D32: 5.00 | E32: 5.00
A33: Итого: | C33: 420 | F33: =F17+F25+F30 -> 10.35 | G33: =G17+G25+G30 -> 14.01 | H33: 52.96 | I33: 379.50 | J33: 0.40
B34: 2 - ой ЗАВТРАК
A35: Сок | C35: 95 | D35: 95 | E35: 95 | F35: 0.00 | G35: 0.00 | H35: 11.00 | I35: 44.00 | J35: 1.00 | K35: №399Дели2010
A36: в ассортименте
A37: Итого: | C37: 95 | F37: 0.00 | G37: 0.00 | H37: 11.00 | I37: 44.00 | J37: 1.00
B38: ОБЕД
A39: Салат из кукурузы консервированной | C39: 40 | F39: 1.15 | G39: 2.47 | H39: 3.22 | I39: 39.72 | J39: 3.78 | K39: №12 Сб дошк 2016
B40: кукуруза к/с | D40: 53.20 | E40: 37.20
B41: сахар | D41: 0.80 | E41: 0.80
B42: масло растительное | D42: 2.40 | E42: 2.40
A43: Суп вермишелевый с картофелем с мясными фрикадельками | C43: 200/15 | F43: 4.86 | G43: 5.80 | H43: 15.24 | I43: 132.60 | J43: 5.28 | K43: №140,сбшк2004
B44: говядина б/к (котлетное мясо) | D44: 17.85 | E44: 17.1
B45: Лук репчатый | D45: 1.79 | E45: 1.5
B46: Яйцо | D46: 1.44 | E46: 1.2
B47: Вода для фарша | D47: 1.5 | E47: 1.5
B48: Масса полуфабриката | E48: 21.5
B49: Картофель | D49: 79.80 | E49: 60.00
B50: Морковь | D50: 10.00 | E50: 8.00
B51: Лук репчатый | D51: 9.52 | E51: 8.00
B52: вермишель | D52: 8.00 | E52: 8.00
B53: Масло растительное | D53: 4.00 | E53: 4.00
B54: Соль | D54: 1.20 | E54: 1.20
B55: Вода | D55: 152.00 | E55: 152.00
A56: Котлеты рубленые из говядины | C56: 70 | F56: 11 | G56: 8 | H56: 10.9 | I56: 159.5 | J56: 0.04 | K56: №451сбшк2004
B57: говядина б/к (котлетное мясо) | D57: 54.3 | E57: 52
B58: Хлеб пшеничный 1с | D58: 12.6 | E58: 12.6
B59: Вода | D59: 16.8 | E59: 16.8
B60: Сухари панировочные | D60: 7 | E60: 7
B61: Соль | D61: 0.3 | E61: 0.3
B62: масса полуфабриката | E62: 86
B63: Масло растительное | D63: 1 | E63: 1
A64: Капуста тушеная | C64: 150 | F64: 3.30 | G64: 4.90 | H64: 14.10 | I64: 114.60 | J64: 24.70 | K64: №534сб шк2004
B65: Капуста свежая | D65: 215.00 | E65: 172.00
B66: Лук репчатый | D66: 7.14 | E66: 6.00
B67: Морковь | D67: 3.75 | E67: 3.00
B68: Мука пшеничная | D68: 2.00 | E68: 2.00
B69: Масло сливочное | D69: 2.00 | E69: 2.00
B70: Масло растительное | D70: 2.00 | E70: 2.00
B71: Томат-паста | D71: 1.20 | E71: 1.20
B72: Сахар | D72: 4.50 | E72: 4.50
B73: Соль | D73: 1.00 | E73: 1.00
A74: Компот из сухофруктов | C74: 150 | F74: 0.70 | G74: 0.04 | H74: 20.60 | I74: 85.00 | J74: 0.30 | K74: №376Дели2010
B75: сухофрукты | D75: 15.30 | E75: 15.00
B76: Сахар | D76: 10.00 | E76: 10.00
B77: Вода | D77: 152.00 | E77: 152.00
A78: Хлеб ржаной | C78: 47.5 | D78: 47.50 | E78: 47.50 | F78: 2.40 | G78: 0.50 | H78: 22.80 | I78: 104.50
A79: Итого: | C79: 672.5 | F79: =F39+F43+F56+F64+F74+F78 -> 23.41 | G79: =G39+G43+G56+G64+G74+G78 -> 21.71 | H79: 86.86 | I79: 635.92 | J79: 34.10
B80: ПОЛДНИК
A81: Кондитерские изделия | C81: 35 | D81: 35.00 | E81: 35.00 | F81: 2.10 | G81: 8.00 | H81: 22.30 | I81: 169.60
A82: печенье
A83: Кисломолочный напиток | C83: 180 | F83: 5.20 | G83: 4.50 | H83: 7.60 | I83: 92.00 | J83: 0.90 | K83: №420 СБ дошк 2016
A84: (кефир,ряженка,катык,напиток ацидофильный) | B84: кисломолочный напиток | D84: 185.00 | E84: 180.00
A85: Итого: | C85: 215 | F85: =F81+F83 -> 7.30 | G85: =G81+G83 -> 12.50 | H85: 29.90 | I85: 261.60 | J85: 0.90
B86: УЖИН
A87: Фрукты свежие | C87: 80 | D87: 91.2 | E87: 80 | F87: 0.32 | G87: 0.32 | H87: 7.84 | I87: 35.20 | J87: 8.00 | K87: №386 СБ
A88: (яблоки,или апельсин, или груши) | K88: дошк.2016
A89: Рыба запеченная с морковью | C89: 100 | F89: 10.98 | G89: 5.11 | H89: 4.31 | I89: 107.50 | J89: 1.75 | K89: № 267 СБ дошк 2016
B90: рыба (горбуша ПБГ) | D90: 83.6 | E90: 61
B91: соль | D91: 0.4 | E91: 0.4
B92: масса припущенной рыбы | E92: 50
B93: морковь | D93: 21.8 | E93: 16
B94: Лук репчатый | D94: 5.3 | E94: 4
B95: Масло растительное | D95: 3.75 | E95: 3.75
B96: сыр | D96: 5.4 | E96: 5
B97: соус сметанный: | E97: 32.5 | K97: №372 СБ дошк 2016
B98: Вода или отвар | D98: 24.4 | E98: 24.4
B99: сметана | D99: 8.13 | E99: 8.1
B100: мука пшеничная | D100: 2.5 | E100: 2.5
B101: соль | D101: 0.25 | E101: 0.25
B102: масса полуфабриката | E102: 111.3
B103: масса запеченной рыбы | E103: 100.0
A104: Пюре Картофельное | C104: 140 | F104: 2.86 | G104: 4.48 | H104: 19.07 | I104: 128.10 | J104: 0.23 | K104: №339,сб дошк 2016
B105: Картофель | D105: 159.60 | E105: 119.70
B106: Молоко | D106: 22.12 | E106: 21.00
B107: Масло сливочное | D107: 5.00 | E107: 5.00
B108: Соль | D108: 0.50 | E108: 0.50
A109: Чай с сахаром | C109: 180/10 | F109: 0.10 | G109: 0.02 | H109: 10.00 | I109: 40.00 | K109: № 392 Дели 2010
B110: Заварка | D110: 0.45 | E110: 0.45
B111: сахар | D111: 10.00 | E111: 10.00
B112: Вода | D112: 180.00 | E112: 180.00
A113: Хлеб пшеничный 1с | C113: 40.00 | D113: 40.00 | E113: 40.00 | F113: 3.20 | G113: 0.40 | H113: 19.60 | I113: 96.00
A114: Итого: | C114: 550 | F114: =F87+F89+F104+F109+F113 -> 17.46 | G114: =G87+G89+G104+G109+G113 -> 10.33 | H114: 60.82 | I114: 406.80 | J114: 9.98
A115: ВСЕГО: | C115: =C33+C37+C79+C85+C114 -> 1952.5 | F115: =F33+F37+F79+F85+F114 -> 58.52 | G115: =G33+G37+G79+G85+G114 -> 58.55 | H115: 241.54 | I115: 1727.82 | J115: 46.38
A117: День 2- ой
A118: Наименование блюд и | C118: Масса | D118: Кол - во | E118: Кол - во | F118: Пищевые вещества | I118: Энергетическая | J118: Витамин | K118: Сборник
A119: продуктов | C119: порции | D119: (в гр ) | E119: (в гр ) | I119: ценность | K119: рецептур
D120: брутто | E120: нетто | F120: белки | G120: жиры | H120: угл-ды | I120: Ккал | J120: С
B121: ЗАВТРАК
A122: Каша полбяная молочная с маслом | C122: 200/5 | F122: 5.89 | G122: 5.42 | H122: 25.84 | I122: 176.00 | J122: 0.21 | K122: ТТК №1Д
B123: крупа полбяная | D123: 25.00 | E123: 25.00
B124: Молоко | D124: 100.00 | E124: 100.00
B125: вода | D125: 76.00 | E125: 76.00
B126: Сахар | D126: 5.00 | E126: 5.00
B127: Соль | D127: 1.00 | E127: 1.00
B128: Масло сливочное | D128: 5.00 | E128: 5.00
A129: Какао с молоком | C129: 180 | F129: 3.67 | G129: 3.19 | H129: 15.82 | I129: 107.00 | J129: 0.39 | K129: №397 Дели2010
B130: Какао-порошок | D130: 2.00 | E130: 2.00
B131: Сахар | D131: 10.00 | E131: 10.00
B132: Молоко | D132: 110.00 | E132: 110.00
B133: Вода | D133: 80.00 | E133: 80.00
A134: Бутерброд с сыром, маслом | C134: 30/7/5 | F134: 4.80 | G134: 7.20 | H134: 15.40 | I134: 146.00 | J134: 0.19 | K134: №3 Дели2010
B135: Батон нарезной | D135: 30.00 | E135: 30.00
B136: Сыр | D136: 7.14 | E136: 7.00
B137: Масло сливочное | D137: 5.00 | E137: 5.00
A138: Итого: | C138: 427 | F138: =F122+F129+F134 -> 14.36 | G138: =G122+G129+G134 -> 15.81 | H138: 57.06 | I138: 429.00 | J138: 0.79
B139: 2 - ой ЗАВТРАК
A140: Сок | C140: 95 | D140: 95 | E140: 95 | F140: 0.00 | G140: 0.00 | H140: 11.00 | I140: 44.00 | J140: 1.00 | K140: №399Дели2010
A141: в ассортименте
A142: Итого: | C142: 95 | F142: 0.00 | G142: 0.00 | H142: 11.00 | I142: 44.00 | J142: 1.00
B143: ОБЕД
A144: Салат из картофеля и зеленого горошка к/с | C144: 60 | F144: 1.18 | G144: 3.15 | H144: 5.87 | I144: 56.52 | J144: 9.49 | K144: №26 СБ дошк 2016
B145: Картофель | D145: 50.69 | E145: 37.00
B146: морковь | D146: 12.50 | E146: 10.00
B147: зеленый горошек к/с | D147: 16.70 | E147: 10.00
B148: Масло растительное | D148: 3.00 | E148: 3.00
A149: Борщ со свежей капустой, картофелем на м/б,со сметаной | C149: 200/10 | F149: 1.50 | G149: 3.90 | H149: 9.50 | I149: 79.00 | J149: 6.36 | K149: №110, сб шк2004
B150: Капуста свежая | D150: 20.00 | E150: 16.00
B151: Картофель | D151: 21.28 | E151: 16.00
B152: Морковь | D152: 12.50 | E152: 10.00
B153: Лук репчатый | D153: 9.52 | E153: 8.00
B154: Свекла | D154: 41.00 | E154: 32.00
B155: Сахар | D155: 2.40 | E155: 2.40
B156: Томат-паста | D156: 1.00 | E156: 1.00
B157: Масло растительное | D157: 4.00 | E157: 4.00
B158: Сметана | D158: 10.00 | E158: 10.00
B159: Соль | D159: 2.00 | E159: 2.00
B160: Бульон | D160: 160.00 | E160: 160.00
A161: Плов из отварной говядины | C161: 200 | F161: 15.60 | G161: 15.00 | H161: 28.00 | I161: 309.50 | J161: 0.65 | K161: №443,сбшк2004
B162: Говядина б/к (лопатка) | D162: 52.00 | E162: 52.0
B163: масса отварного мяса | E163: 32.0
B164: Масло растительное | D164: 8.0 | E164: 8.0
B165: Лук репчатый | D165: 11.9 | E165: 10.0
B166: Морковь | D166: 16.3 | E166: 13.0
B167: Крупа рисовая | D167: 55.0 | E167: 55.0
B168: вода | D168: 86.0 | E168: 86.0
B169: Соль | D169: 2.0 | E169: 2.0
B170: масса гарнира | E170: 168.0
A171: Кисель | C171: 150 | H171: 15.00 | I171: 60.00 | K171: № 648, сб шк2004
B172: Кисель-концентрат | D172: 18.00 | E172: 18.00
B173: вода | D173: 150.00 | E173: 150.00
B174: Сахар | D174: 7.50 | E174: 7.50
A175: Хлеб ржаной | C175: 47.5 | D175: 47.50 | E175: 47.50 | F175: 2.40 | G175: 0.50 | H175: 22.80 | I175: 104.50
A176: Итого: | C176: 667.5 | F176: =F144+F149+F161+F171+F175 -> 20.68 | G176: =G144+G149+G161+G171+G175 -> 22.55 | H176: 81.17 | I176: =I144+I149+I161+I171+I175 -> 609.52 | J176: 16.50
B177: ПОЛДНИК
A178: Кисломолочный напиток | C178: 180 | F178: 5.20 | G178: 4.55 | H178: 7.60 | I178: 92.00 | J178: 0.90 | K178: №420 СБ дошк 2016
A179: (Кефир,ряженка,катык,напиток ацидофильный) | B179: кисломолочный напиток | D179: 185 | E179: 180
A180: Итого: | C180: 180 | F180: =F178 -> 5.20 | G180: =G178 -> 4.55 | H180: 7.60 | I180: 92.00 | J180: 0.90
B181: УЖИН
A182: Фрукты свежие | C182: 80 | D182: 119 | E182: 80 | F182: 0.63 | G182: 0.14 | H182: 15.65 | I182: 66.00 | J182: 4.00 | K182: № 386 СБ дошк 2016
A183: (яблоки,или апельсин, или груши)
A184: Кондитерские изделия | C184: 49 | D184: 49.00 | E184: 49.00 | F184: 0.56 | G184: 8.00 | H184: 20.00 | I184: 154.20
A185: вафли
A186: Салат из моркови отварной с сахаром | C186: 60 | F186: 0.75 | G186: 0.06 | H186: 6.97 | I186: 31.40 | J186: 2.96 | K186: №42 СБ дошк 2016
B187: морковь | D187: 73.08 | E187: 58.00
B188: сахар | D188: 3.00 | E188: 3.00
A189: Суфле из творога с повидлом | C189: 150/25 | F189: 19.00 | G189: 10.00 | H189: 41.00 | I189: 330.00 | J189: 0.40 | K189: №365, сб шк2004
B190: Творог | D190: 109.14 | E190: 107.00
B191: крупа манная | D191: 12.00 | E191: 12.00
B192: Яйцо | D192: 9.00 | E192: 7.50
B193: Сахар | D193: 6.40 | E193: 6.40
B194: Молоко | D194: 21.40 | E194: 21.40
B195: Сметана | D195: 14.00 | E195: 14.00
B196: соль | D196: 1.00 | E196: 1.00
B197: Масло растительное | D197: 1.00 | E197: 1.00
B198: повидло | D198: 25.00 | E198: 25.00
A199: Чай с сахаром и лимоном | C199: 180/10/7 | F199: 0.12 | G199: 0.02 | H199: 10.20 | I199: 41.00 | K199: № 393 Дели2010
B200: Заварка | D200: 0.45 | E200: 0.45
B201: Сахар | D201: 10.00 | E201: 10.00
B202: лимон | D202: 8.00 | E202: 7.00
B203: Вода | D203: 180.00 | E203: 180.00
A204: Хлеб пшеничный 1с | C204: 30 | D204: 30.00 | E204: 30.00 | F204: 1.50 | G204: 0.30 | H204: 14.40 | I204: 66.00 | J204: 0.00
A205: Итого: | C205: 591 | F205: =F182+F184+F186+F189+F199+F204 -> 22.56 | G205: =G182+G184+G186+G189+G199+G204 -> 18.52 | H205: 108.22 | I205: =I182+I184+I186+I189+I199+I204 -> 688.60 | J205: =J182+J184+J186+J189+J199+J204 -> 7.36
... 885 more rows

Sheet 1-3
H1: "Утверждаю"
H2: Руководитель МАДОУ "Детский сад общеразвивающего вида № 74" НМР РТ
J3: Л.И.Салахова
H4: от 01.04.2019
E6: Примерное 10-дневное меню
E7: для организации питания детей в дошкольных учреждениях
E8: с 12 - часовым пребыванием от 1 до 3 лет
A10: День 1 - ый
A11: Наименование блюд и | C11: Масса | D11: Кол - во | E11: Кол - во | F11: Пищевые вещества | I11: Энергетическая | J11: витамин | K11: Сборник
A12: продуктов | C12: порции | D12: (в гр ) | E12: (в гр ) | I12: ценность | K12: рецептур
D13: брутто | E13: нетто | F13: белки | G13: жиры | H13: угл-ды | I13: Ккал | J13: С
A15: Каша "Дружба" молочная с маслом | C15: 150/4 | F15: 3.60 | G15: 5.30 | H15: 17.00 | I15: 130.00 | J15: 0.21 | K15: ТТК №7Д
B16: Крупа рисовая | D16: 11 | E16: 11
B17: Крупа пшенная | D17: 8 | E17: 8
B18: Молоко | D18: 80 | E18: 80
B19: Вода | D19: 52 | E19: 52
B20: Сахар | D20: 4 | E20: 4
B21: Соль | D21: 0.8 | E21: 0.8
B22: Масло сливочное | D22: 4 | E22: 4
A23: Кофейный напиток с молоком | C23: 165 | F23: 2.57 | G23: 2.2 | H23: 11.69 | I23: 77 | J23: 0.16 | K23: №395Дели2010
B24: Кофейный напиток | D24: 2 | E24: 2
B25: Сахар | D25: 7.7 | E25: 7.7
B26: Молоко | D26: 75 | E26: 75
B27: вода | D27: 106 | E27: 106
A28: Бутерброд с маслом сливочным | C28: 25/5 | F28: 1.9 | G28: 4.4 | H28: 13 | I28: 99 | K28: №1 Дели2010
B29: Батон нарезной | D29: 25 | E29: 25
B30: Масло сливочное | D30: 5 | E30: 5
A31: Итого: | C31: 349 | F31: =F15+F23+F28 -> 8.07 | G31: =G15+G23+G28 -> 11.90 | H31: 41.69 | I31: 306.00 | J31: 0.37
B32: 2 - ой ЗАВТРАК
A33: Сок | C33: 200 | D33: 200 | E33: 200 | F33: 0 | G33: 0 | H33: 23.16 | I33: 92.63 | J33: 2.11 | K33: №399Дели2010
A34: в ассортименте в инд.упаковке
A35: Итого: | C35: 200 | F35: 0.00 | G35: 0.00 | H35: 23.16 | I35: 92.63 | J35: 2.11
B36: ОБЕД
A37: Салат из кукурузы консервированной | C37: 30 | F37: 0.86 | G37: 1.85 | H37: 2.41 | I37: 29.79 | J37: 2.83 | K37: №12 Сб дошк 2016
B38: кукуруза к/с | D38: 39.90 | E38: 27.90
B39: сахар | D39: 0.60 | E39: 0.60
B40: масло растительное | D40: 1.80 | E40: 1.80
A41: Суп вермишелевый с картофелем с мясными фрикадельками | C41: 150/15 | F41: 4.00 | G41: 4.45 | H41: 11.70 | I41: 103.00 | J41: 4.00 | K41: 140сбшк2004
B42: говядина б/к (котлетное мясо) | D42: 17.85 | E42: 17.1
B43: Лук репчатый | D43: 1.79 | E43: 1.5
B44: Яйцо | D44: 1.44 | E44: 1.2
B45: Вода для фарша | D45: 1.5 | E45: 1.5
B46: Масса полуфабриката | E46: 21.5
B47: Картофель | D47: 59.9 | E47: 45.0
B48: Морковь | D48: 7.5 | E48: 6.0
B49: Лук репчатый | D49: 7.14 | E49: 6.0
B50: вермишель | D50: 6.0 | E50: 6.0
B51: Масло растительное | D51: 3.0 | E51: 3.0
B52: Соль | D52: 1.0 | E52: 1.0
B53: Вода | D53: 114.0 | E53: 114.0
A54: Котлеты рубленные из говядины | C54: 50 | F54: 7.85 | G54: 7 | H54: 7.8 | I54: 125.5 | J54: 0.03 | K54: №451сбшк2004
B55: говядина б/к (котлетное мясо) | D55: 38.77 | E55: 37.14
B56: Хлеб пшеничный 1с | D56: 9.3 | E56: 9.3
B57: Вода | D57: 11.4 | E57: 11.4
B58: Сухари панировочные | D58: 5 | E58: 5
B59: Соль | D59: 0.6 | E59: 0.6
B60: масса полуфабриката | E60: 61
B61: Масло растительное | D61: 1 | E61: 1
A62: Капуста тушеная | C62: 150 | F62: 3.3 | G62: 4.9 | H62: 14.1 | I62: 114.6 | J62: 24.7 | K62: №534сбшк2004
B63: Капуста свежая | D63: 215 | E63: 172
B64: Лук репчатый | D64: 7.14 | E64: 6
B65: Морковь | D65: 3.75 | E65: 3
B66: томатная паста | D66: 1.2 | E66: 1.2
B67: Мука пшеничная | D67: 2 | E67: 2
B68: Масло растительное | D68: 2 | E68: 2
B69: Масло сливочное | D69: 2 | E69: 2
B70: Сахар | D70: 4.5 | E70: 4.5
B71: Соль | D71: 1 | E71: 1
A72: Компот из сухофруктов | C72: 130 | F72: 0.28 | G72: 0.01 | H72: 18.05 | I72: 73.45 | J72: 0.26 | K72: №376Дели2010
B73: сухофрукты | D73: 13.3 | E73: 13
B74: вода | D74: 130 | E74: 130
B75: Сахар | D75: 8 | E75: 8
A76: Хлеб ржаной | C76: 38 | D76: 38 | E76: 38 | F76: 1.9 | G76: 0.38 | H76: 18.2 | I76: 83.6
A77: Итого: | C77: 563.00 | F77: =F37+F41+F54+F62+F72+F76 -> 18.19 | G77: =G37+G41+G54+G62+G72+G76 -> 18.59 | H77: 72.26 | I77: 529.94 | J77: 31.82
B78: ПОЛДНИК
A79: Кондитерские изделия | C79: 10 | D79: 10 | E79: 10 | F79: 5.90 | G79: 3.50 | H79: 11.00 | I79: 99.00
A80: вафли
A81: Кисломолочный напиток | C81: 150 | F81: 4.33 | G81: 3.75 | H81: 6 | I81: 79.5 | J81: 0.93 | K81: №420 Сб дошк 2016
A82: (кефир,ряженка,катык,напиток ацидофильный) | B82: кисломолочный напиток | D82: 155 | E82: 150
A83: Итого: | C83: 160 | F83: =F79+F81 -> 10.23 | G83: =G79+G81 -> 7.25 | H83: 17.00 | I83: 178.50 | J83: 0.93
B84: УЖИН
A85: Фрукты свежие | C85: 80 | D85: 91.2 | E85: 80 | F85: 0.32 | G85: 0.32 | H85: 7.84 | I85: 35.20 | J85: 8.00 | K85: №386 СБ дошк 2016
A86: (яблоки,или апельсин, или груши)
A87: Пудинг рыбный | C87: 60/20 | F87: 11.23 | G87: 6.77 | H87: 8.12 | I87: 136.84 | K87: №286 СБ дошк 2016
B88: рыба (горбуша ПБГ) | D88: 69 | E88: 50.25
B89: масса отварной рыбы | E89: 39.75
B90: Хлеб пшеничный 1с | D90: 8.25 | E90: 8.25
B91: яйцо | D91: 6.3 | E91: 5.25
B92: молоко | D92: 12 | E92: 12
B93: масло сливочное | D93: 2.25 | E93: 2.25
B94: соль | D94: 0.4 | E94: 0.4
B95: Масло растительное | D95: 1 | E95: 1
B96: Соус молочный
B97: молоко | D97: 10 | E97: 10
B98: масло сливочное | D98: 1.1 | E98: 1.1
B99: Мука пшеничная | D99: 1.1 | E99: 1.1
B100: Вода | D100: 10 | E100: 10
B101: Сахар | D101: 0.2 | E101: 0.2
B102: соль | D102: 0.13 | E102: 0.13
B103: масса соуса | E103: 20
A104: Пюре Картофельное | C104: 130 | F104: 2.80 | G104: 4.00 | H104: 17.00 | I104: 115.00 | J104: 8.40 | K104: №520сбшк2004
B105: Картофель | D105: 148.96 | E105: 112
B106: Молоко | D106: 21 | E106: 20
B107: Масло сливочное | D107: 4 | E107: 4
B108: Соль | D108: 0.5 | E108: 0.5
A109: Чай с сахаром | C109: 150/8 | F109: 0.04 | G109: 0.01 | H109: 6.99 | I109: 28 | J109: 0.04 | K109: №392Дели2010
B110: Заварка | D110: 0.4 | E110: 0.4
B111: Сахар | D111: 8 | E111: 8
B112: Вода | D112: 150 | E112: 150
A113: Хлеб пшеничный 1с | C113: 35 | D113: 35.00 | E113: 35.00 | F113: 2.80 | G113: 0.35 | H113: 17.15 | I113: 83.00 | J113: 0.00
A114: Итого: | C114: 483.00 | F114: =F85+F87+F104+F113+F109 -> 17.19 | G114: =G85+G87+G104+G113+G109 -> 11.45 | H114: =H85+H87+H104+H113+H109 -> 57.10 | I114: =I85+I87+I104+I113+I109 -> 398.04 | J114: =J85+J87+J104+J113+J109 -> 16.44
A115: ВСЕГО: | C115: =C31+C35+C77+C83+C114 -> 1755.00 | F115: =F31+F35+F77+F83+F114 -> 53.68 | G115: =G31+G35+G77+G83+G114 -> 49.19 | H115: =H31+H35+H77+H83+H114 -> 211.21 | I115: =I31+I35+I77+I83+I114 -> 1505.11 | J115: =J31+J35+J77+J83+J114 -> 51.67
A117: День 2- ой
A118: Наименование блюд и | C118: Масса | D118: Кол - во | E118: Кол - во | F118: Пищевые вещества | I118: Энергетическая | J118: Витамин | K118: Сборник
A119: продуктов | C119: порции | D119: (в гр ) | E119: (в гр ) | I119: ценность | K119: рецептур
D120: брутто | E120: нетто | F120: белки | G120: жиры | H120: угл-ды | I120: Ккал | J120: С
B121: ЗАВТРАК
A122: Каша полбяная молочная с маслом | C122: 150/4 | F122: 4.20 | G122: 3.80 | H122: 18.00 | I122: 123.00 | J122: 0.16 | K122: ТТК №1Д
B123: Полба | D123: 19 | E123: 19
B124: Молоко | D124: 80 | E124: 80
B125: вода | D125: 52 | E125: 52
B126: Сахар | D126: 4 | E126: 4
B127: Соль | D127: 0.8 | E127: 0.8
B128: Масло сливочное | D128: 4 | E128: 4
A129: Какао с молоком | C129: 160 | F129: 3.47 | G129: 2.99 | H129: 14.26 | I129: 97.90 | J129: 0.32 | K129: №397Дели2010
B130: Какао-порошок | D130: 1.7 | E130: 1.7
B131: Сахар | D131: 9 | E131: 9
B132: Молоко | D132: 92 | E132: 92
B133: вода | D133: 77 | E133: 77
A134: Бутерброд с сыром, маслом | C134: 25/5/5 | F134: 3.50 | G134: 5.95 | H134: 12.90 | I134: 119.60 | J134: 0.04 | K134: №3Дели2010
B135: Батон нарезной | D135: 25 | E135: 25
B136: Сыр | D136: 5.1 | E136: 5
B137: Масло сливочное | D137: 5 | E137: 5
A138: Итого: | C138: 349 | F138: =F122+F129+F134 -> 11.17 | G138: =G122+G129+G134 -> 12.74 | H138: 45.16 | I138: 340.50 | J138: 0.52
B139: 2 - ой ЗАВТРАК
A140: Фрукты свежие | C140: 80 | D140: 119 | E140: 80 | F140: 0.63 | G140: 0.14 | H140: 15.65 | I140: 66.00 | J140: 4.00 | K140: №386 СБ дошк 2016
A141: (яблоки,или апельсин, или груши)
A142: Итого: | C142: 80 | F142: 0.63 | G142: 0.14 | H142: 15.65 | I142: 66.00 | J142: 4.00
B143: ОБЕД
A144: Салат из картофеля и зеленого горошка к/с | C144: 50 | F144: 0.98 | G144: 2.62 | H144: 4.89 | I144: 47.10 | J144: 7.90 | K144: №26 СБ дошк 2016
B145: Картофель | D145: 50.69 | E145: 37.00
B146: морковь | D146: 12.50 | E146: 10.00
B147: зеленый горошек к/с | D147: 16.70 | E147: 10.00
B148: Масло растительное | D148: 3.00 | E148: 3.00
A149: Борщ со свежей капустой, картофелем на м/б,со сметаной | C149: 150/10 | F149: 1.10 | G149: 3.20 | H149: 7.20 | I149: 62.00 | J149: 4.80 | K149: №110,сбшк2004
B150: Капуста свежая | D150: 15.0 | E150: 12.0
B151: Картофель | D151: 15.96 | E151: 12.0
B152: Морковь | D152: 7.5 | E152: 6.0
B153: Лук репчатый | D153: 7.14 | E153: 6.0
B154: Свекла | D154: 30.72 | E154: 24.0
B155: Сахар | D155: 1.8 | E155: 1.8
B156: Масло растительное | D156: 3.0 | E156: 3.0
B157: Сметана | D157: 10.0 | E157: 10.0
B158: Соль | D158: 1.5 | E158: 1.5
B159: Бульон | D159: 120 | E159: 120.0
A160: Плов из отварной говядины | C160: 150 | F160: 11.70 | G160: 11.70 | H160: 24.00 | I160: 248.30 | J160: 0.48 | K160: №443сбшк2004
B161: Говядина б/к (лопатка) | D161: 39.00 | E161: 39.0
B162: масса отварного мяса | E162: 24.0
B163: Масло растительное | D163: 5.0 | E163: 5.0
B164: Лук репчатый | D164: 8.9 | E164: 7.5
B165: Морковь | D165: 12.5 | E165: 10.0
B166: Крупа рисовая | D166: 32.0 | E166: 32.0
B167: вода | D167: 65.0 | E167: 65.0
B168: Соль | D168: 1.3 | E168: 1.3
B169: масса гарнира | E169: 126.0
A170: Кисель | C170: 130 | H170: 13.00 | I170: 52.00 | K170: №648сбшк2004
B171: Кисель-концентрат | D171: 15.20 | E171: 15.20
B172: Сахар | D172: 6.00 | E172: 6.00
B173: вода | D173: 130.00 | E173: 130.00
A174: Хлеб ржаной | C174: 38 | D174: 38 | E174: 38 | F174: 1.9 | G174: 0.38 | H174: 18.2 | I174: 83.6
A175: Итого: | C175: 528.00 | F175: =F144+F149+F160+F170+F174 -> 15.68 | G175: =G144+G149+G160+G170+G174 -> 17.90 | H175: 67.29 | I175: 493.00 | J175: 13.18
B176: ПОЛДНИК
A177: Кисломолочный напиток | C177: 160 | F177: 4.62 | G177: 4.04 | H177: 6.75 | I177: 82.00 | J177: 0.80 | K177: №420 Сб дошк 2016
A178: (кефир,ряженка,катык,напиток ацидофильный) | B178: кисломолочный напиток | D178: 165 | E178: 160
A179: Итого: | C179: 160.00 | F179: =F177 -> 4.62 | G179: =G177 -> 4.04 | H179: 6.75 | I179: 82.00 | J179: 0.80
B180: УЖИН
A181: Кондитерские изделия | C181: 17.5 | D181: 17.5 | E181: 17.5 | F181: 1.10 | G181: 5.00 | H181: 9.00 | I181: 85.50 | K181: №386 СБ дошк 2016
A182: печенье
A183: Салат из отварной моркови с сахаром | C183: 50 | F183: 0.62 | G183: 0.05 | H183: 5.81 | I183: 26.20 | J183: 2.22 | K183: №42 СБ дошк 2016
B184: морковь | D184: 60.48 | E184: 48
B185: сахар | D185: 2.5 | E185: 2.5
A186: Суфле из творога с повидлом | C186: 130/20 | F186: 16.00 | G186: 9.00 | H186: 33.00 | I186: 277.00 | J186: 0.30 | K186: №365сбшк2004
B187: Творог | D187: 94.86 | E187: 93.00
B188: Крупа манная | D188: 10.00 | E188: 10.00
B189: Яйцо | D189: 7.44 | E189: 6.20
B190: Сахар | D190: 9.90 | E190: 9.90
B191: Молоко | D191: 18.60 | E191: 18.60
B192: Сметана | D192: 12.40 | E192: 12.40
B193: соль | D193: 0.40 | E193: 0.40
B194: Масло растительное | D194: 0.70 | E194: 0.70
B195: повидло фруктовое | D195: 20.00 | E195: 20.00
A196: Чай с сахаром и лимоном | C196: 150/8/5 | F196: 0.07 | G196: 0.01 | H196: 7.10 | I196: 29.00 | J196: 1.46 | K196: №393Дели2010
B197: Заварка | D197: 0.4 | E197: 0.4
B198: Сахар | D198: 8 | E198: 8
B199: лимон | D199: 5.55 | E199: 5
B200: Вода | D200: 150.0 | E200: 150.0
A201: Хлеб пшеничный 1с | C201: 20 | D201: 20.00 | E201: 20.00 | F201: 1.60 | G201: 0.20 | H201: 9.80 | I201: 48.00 | J201: 0.00
A202: Итого: | C202: 400.5 | F202: =F181+F183+F186+F201+F196 -> 19.39 | G202: =G181+G183+G186+G201+G196 -> 14.26 | H202: 64.71 | I202: 465.70 | J202: 3.98
A203: ВСЕГО: | C203: =C138+C142+C175+C179+C202 -> 1517.50 | F203: =F138+F142+F175+F179+F202 -> 51.49 | G203: =G138+G142+G175+G179+G202 -> 49.08 | H203: 199.56 | I203: 1447.20 | J203: 22.48
A205: День 3 - ий
... 865 more rows
